[Event "Late-Titled-Tuesday-Blitz-June-25-2024"]
[Site "Chess.com"]
[Date "2024.06.25"]
[Round "8"]
[White "legendisback1"]
[Black "Jospem"]
[Result "0-1"]
[WhiteElo "3031"]
[BlackElo "3068"]
[TimeControl "180+1"]
[EndTime "15:31:15 PDT"]
[Termination "Jospem won by resignation"]

1. c4 {[%clk 0:03:00.9]} 1... e6 {[%clk 0:02:58.7]} 2. Nc3 {[%clk 0:03:00.4]}
2... d5 {[%clk 0:02:59.2]} 3. d4 {[%clk 0:03:00.9]} 3... Nf6 {[%clk 0:02:59.3]}
4. cxd5 {[%clk 0:03:01.3]} 4... exd5 {[%clk 0:02:59.5]} 5. Bg5 {[%clk
0:03:01.1]} 5... Bb4 {[%clk 0:03:00.1]} 6. e3 {[%clk 0:02:54.8]} 6... h6 {[%clk
0:02:59.6]} 7. Bxf6 {[%clk 0:02:51.9]} 7... Qxf6 {[%clk 0:03:00.5]} 8. Qa4+
{[%clk 0:02:46.2]} 8... Nc6 {[%clk 0:02:59.5]} 9. Nf3 {[%clk 0:02:38.2]} 9...
O-O {[%clk 0:02:49.8]} 10. Be2 {[%clk 0:02:37.4]} 10... Rd8 {[%clk 0:02:43.1]}
11. O-O {[%clk 0:02:33.6]} 11... Bf8 {[%clk 0:02:42.5]} 12. Rac1 {[%clk
0:02:22.5]} 12... a6 {[%clk 0:02:36.8]} 13. Qb3 {[%clk 0:02:05.7]} 13... Ne7
{[%clk 0:01:53.1]} 14. Ne5 {[%clk 0:01:58.3]} 14... c6 {[%clk 0:01:52.4]} 15.
Na4 {[%clk 0:01:58.2]} 15... Qd6 {[%clk 0:01:36.9]} 16. Nb6 {[%clk 0:01:22.3]}
16... Rb8 {[%clk 0:01:35.3]} 17. Nxc8 {[%clk 0:01:16.9]} 17... Rdxc8 {[%clk
0:01:27.5]} 18. f4 {[%clk 0:01:04]} 18... Re8 {[%clk 0:01:00.5]} 19. f5 {[%clk
0:01:00.7]} 19... Nc8 {[%clk 0:00:29.2]} 20. Bh5 {[%clk 0:00:55.6]} 20... Rxe5
{[%clk 0:00:29.2]} 21. dxe5 {[%clk 0:00:53.4]} 21... Qxe5 {[%clk 0:00:30.1]} 22.
Bf3 {[%clk 0:00:42.8]} 22... Bd6 {[%clk 0:00:26.5]} 23. g3 {[%clk 0:00:41.7]}
23... Ne7 {[%clk 0:00:21.1]} 24. f6 {[%clk 0:00:31.9]} 24... gxf6 {[%clk
0:00:19]} 25. Bg2 {[%clk 0:00:20.3]} 25... Kg7 {[%clk 0:00:18.6]} 26. Qc3 {[%clk
0:00:16.1]} 26... Qxc3 {[%clk 0:00:17.2]} 27. Rxc3 {[%clk 0:00:17]} 27... Be5
{[%clk 0:00:14.3]} 28. Rb3 {[%clk 0:00:17.3]} 28... Nc8 {[%clk 0:00:14.1]} 29.
Rc1 {[%clk 0:00:15.8]} 29... Ne7 {[%clk 0:00:09.8]} 30. Bf1 {[%clk 0:00:14.8]}
30... f5 {[%clk 0:00:07]} 31. a4 {[%clk 0:00:14.5]} 31... Kg6 {[%clk 0:00:07]}
32. Bd3 {[%clk 0:00:14.4]} 32... Kf6 {[%clk 0:00:07.2]} 33. Kg2 {[%clk
0:00:13.8]} 33... Ke6 {[%clk 0:00:07.1]} 34. Rf1 {[%clk 0:00:10.9]} 34... b5
{[%clk 0:00:07.3]} 35. axb5 {[%clk 0:00:10.6]} 35... axb5 {[%clk 0:00:08.2]} 36.
Ra1 {[%clk 0:00:09.7]} 36... b4 {[%clk 0:00:06.8]} 37. Ra6 {[%clk 0:00:08.5]}
37... Bd6 {[%clk 0:00:05.7]} 38. Be2 {[%clk 0:00:06.7]} 38... c5 {[%clk
0:00:04.8]} 39. Rd3 {[%clk 0:00:07.3]} 39... c4 {[%clk 0:00:03.5]} 40. Rd2
{[%clk 0:00:07.8]} 40... Ke5 {[%clk 0:00:03.1]} 41. Bf3 {[%clk 0:00:07]} 41...
Bc5 {[%clk 0:00:03.5]} 42. Re2 {[%clk 0:00:04.5]} 42... b3 {[%clk 0:00:03.6]}
43. Ra5 {[%clk 0:00:04.3]} 43... Bb4 {[%clk 0:00:03]} 44. Ra7 {[%clk 0:00:04.6]}
44... Bc5 {[%clk 0:00:03]} 45. Ra6 {[%clk 0:00:04.7]} 45... Rc8 {[%clk
0:00:02.7]} 46. Rxh6 {[%clk 0:00:02.7]} 46... Bd6 {[%clk 0:00:02.3]} 47. Rh5
{[%clk 0:00:02.8]} 47... c3 {[%clk 0:00:02.5]} 48. bxc3 {[%clk 0:00:03]} 48...
Rxc3 {[%clk 0:00:03.4]} 49. e4 {[%clk 0:00:03.9]} 49... dxe4 {[%clk 0:00:02.1]}
50. Rxe4+ {[%clk 0:00:04.1]} 50... Kf6 {[%clk 0:00:02.8]} 51. Re2 {[%clk
0:00:03.7]} 51... Ba3 {[%clk 0:00:03.1]} 52. Rh8 {[%clk 0:00:02.8]} 52... b2
{[%clk 0:00:03]} 53. Rb8 {[%clk 0:00:03.4]} 53... Rc1 {[%clk 0:00:03.2]} 54.
Rb6+ {[%clk 0:00:04]} 54... Kg7 {[%clk 0:00:02.9]} 55. Rbxb2 {[%clk 0:00:04.2]}
55... Bxb2 {[%clk 0:00:03.3]} 56. Rxb2 {[%clk 0:00:05.1]} 56... Ng6 {[%clk
0:00:04.2]} 57. Rf2 {[%clk 0:00:04.6]} 57... Rc5 {[%clk 0:00:03.9]} 58. Re2
{[%clk 0:00:04.1]} 58... f4 {[%clk 0:00:04.2]} 59. Be4 {[%clk 0:00:03.6]} 59...
fxg3 {[%clk 0:00:03.8]} 60. hxg3 {[%clk 0:00:04.5]} 60... Ne5 {[%clk 0:00:03.6]}
61. Rf2 {[%clk 0:00:04.3]} 61... Ng4 {[%clk 0:00:03]} 62. Re2 {[%clk 0:00:04.6]}
62... Ne5 {[%clk 0:00:03.2]} 63. Bf3 {[%clk 0:00:05]} 63... f6 {[%clk
0:00:03.9]} 64. Be4 {[%clk 0:00:05.4]} 64... Kh6 {[%clk 0:00:04.3]} 65. Rf2
{[%clk 0:00:05.7]} 65... Kg7 {[%clk 0:00:04.2]} 66. Rf4 {[%clk 0:00:05.9]} 66...
Ra5 {[%clk 0:00:03.9]} 67. Rh4 {[%clk 0:00:06.3]} 67... Ra2+ {[%clk 0:00:03.9]}
68. Kh3 {[%clk 0:00:06.8]} 68... Re2 {[%clk 0:00:03.1]} 69. Bf5 {[%clk
0:00:05.9]} 69... Nf7 {[%clk 0:00:02.7]} 70. Rd4 {[%clk 0:00:04.3]} 70... Re5
{[%clk 0:00:02.2]} 71. Bg4 {[%clk 0:00:03.2]} 71... Ng5+ {[%clk 0:00:02.2]} 72.
Kg2 {[%clk 0:00:03.7]} 72... Kg6 {[%clk 0:00:02.7]} 73. Rc4 {[%clk 0:00:02.9]}
73... Ra5 {[%clk 0:00:02.5]} 74. Rf4 {[%clk 0:00:02.2]} 74... Ra2+ {[%clk
0:00:02.5]} 75. Kf1 {[%clk 0:00:02.7]} 75... Ra3 {[%clk 0:00:02.7]} 76. Bf5+
{[%clk 0:00:03.1]} 76... Kg7 {[%clk 0:00:02.8]} 77. Kg2 {[%clk 0:00:03.6]} 77...
Ra2+ {[%clk 0:00:02.5]} 78. Rf2 {[%clk 0:00:04.3]} 78... Ra5 {[%clk 0:00:02.5]}
79. Kg1 {[%clk 0:00:04.3]} 79... Nf7 {[%clk 0:00:02]} 80. Kg2 {[%clk 0:00:04.5]}
80... Ne5 {[%clk 0:00:02.5]} 81. Rf4 {[%clk 0:00:05]} 81... Ra2+ {[%clk
0:00:02.5]} 82. Rf2 {[%clk 0:00:05.1]} 82... Ra3 {[%clk 0:00:02.9]} 83. Rf4
{[%clk 0:00:05.4]} 83... Kf7 {[%clk 0:00:03.3]} 84. Be4 {[%clk 0:00:04.6]} 84...
Ke7 {[%clk 0:00:03.7]} 85. Bf5 {[%clk 0:00:04.8]} 85... Nf7 {[%clk 0:00:03.5]}
86. Re4+ {[%clk 0:00:04.8]} 86... Kf8 {[%clk 0:00:04.1]} 87. Rf4 {[%clk
0:00:04.4]} 87... Ng5 {[%clk 0:00:04]} 88. Rf2 {[%clk 0:00:03]} 88... Ke7 {[%clk
0:00:04.1]} 89. Rd2 {[%clk 0:00:02.4]} 89... Ra5 {[%clk 0:00:03.7]} 90. Re2+
{[%clk 0:00:02.7]} 90... Kf7 {[%clk 0:00:03.3]} 91. Bg4 {[%clk 0:00:02.5]} 91...
Rc5 {[%clk 0:00:03.4]} 92. Rf2 {[%clk 0:00:03]} 92... Kg7 {[%clk 0:00:03.4]} 93.
Bf5 {[%clk 0:00:03.2]} 93... Nf7 {[%clk 0:00:03.7]} 94. Bh3 {[%clk 0:00:03.4]}
94... Nh6 {[%clk 0:00:03.8]} 95. Kh2 {[%clk 0:00:03.2]} 95... Kg6 {[%clk
0:00:04.4]} 96. Kg2 {[%clk 0:00:03.7]} 96... f5 {[%clk 0:00:04.9]} 97. Re2
{[%clk 0:00:04.2]} 97... Kg5 {[%clk 0:00:05.3]} 98. Rd2 {[%clk 0:00:04.7]} 98...
Rc3 {[%clk 0:00:05.6]} 99. Rf2 {[%clk 0:00:05.1]} 99... Re3 {[%clk 0:00:05.3]}
100. Kh2 {[%clk 0:00:05.2]} 100... Re5 {[%clk 0:00:04.9]} 101. Kg2 {[%clk
0:00:04.2]} 101... Rc5 {[%clk 0:00:04.9]} 102. Kh2 {[%clk 0:00:04.6]} 102... Ra5
{[%clk 0:00:04.5]} 103. Kg2 {[%clk 0:00:05.1]} 103... Ra7 {[%clk 0:00:05.1]}
104. Kh2 {[%clk 0:00:05.4]} 104... Rg7 {[%clk 0:00:05.6]} 105. Kg2 {[%clk
0:00:05.8]} 105... Rh7 {[%clk 0:00:06.3]} 106. Rf4 {[%clk 0:00:04.7]} 106... Re7
{[%clk 0:00:04.6]} 107. Rf2 {[%clk 0:00:04.5]} 107... Re3 {[%clk 0:00:04.4]}
108. Kh2 {[%clk 0:00:04.6]} 108... Rc3 {[%clk 0:00:04.6]} 109. Kg2 {[%clk
0:00:05.1]} 109... Rc4 {[%clk 0:00:04.6]} 110. Rf3 {[%clk 0:00:05.2]} 110... Rb4
{[%clk 0:00:03.4]} 111. Rf2 {[%clk 0:00:05.7]} 111... Ng4 {[%clk 0:00:02.6]}
112. Bxg4 {[%clk 0:00:05.9]} 112... Kxg4 {[%clk 0:00:03.5]} 113. Re2 {[%clk
0:00:05.3]} 113... Rb3 {[%clk 0:00:03.6]} 114. Kf2 {[%clk 0:00:03.3]} 114...
Rf3+ {[%clk 0:00:02.6]} 115. Ke1 {[%clk 0:00:03.7]} 115... Kxg3 {[%clk
0:00:02.7]} 116. Re8 {[%clk 0:00:03.7]} 116... Kf4 {[%clk 0:00:02.7]} 117. Ke2
{[%clk 0:00:03.4]} 117... Ra3 {[%clk 0:00:03.2]} 118. Kf2 {[%clk 0:00:03.5]}
118... Ra2+ {[%clk 0:00:03.7]} 119. Kf1 {[%clk 0:00:02.6]} 119... Kf3 {[%clk
0:00:04.3]} 120. Ke1 {[%clk 0:00:02.8]} 120... Ra1+ {[%clk 0:00:04.5]} 121. Kd2
{[%clk 0:00:02.9]} 121... f4 {[%clk 0:00:05.2]} 122. Rf8 {[%clk 0:00:02.8]}
122... Ra4 {[%clk 0:00:04.6]} 123. Kd3 {[%clk 0:00:02]} 123... Kf2 {[%clk
0:00:04.3]} 124. Kd2 {[%clk 0:00:02.5]} 124... f3 {[%clk 0:00:04.8]} 125. Rf7
{[%clk 0:00:03.1]} 125... Ra6 {[%clk 0:00:05]} 126. Kd3 {[%clk 0:00:03.1]}
126... Rd6+ {[%clk 0:00:05.5]} 127. Ke4 {[%clk 0:00:03.3]} 127... Re6+ {[%clk
0:00:05.3]} 128. Kd3 {[%clk 0:00:03.6]} 128... Re8 {[%clk 0:00:05.3]} 129. Kd2
{[%clk 0:00:03.5]} 129... Rd8+ {[%clk 0:00:05.6]} 130. Kc2 {[%clk 0:00:04]}
130... Ke2 {[%clk 0:00:06.2]} 131. Re7+ {[%clk 0:00:03.9]} 131... Kf1 {[%clk
0:00:06.8]} 132. Rf7 {[%clk 0:00:04.8]} 132... f2 {[%clk 0:00:07.3]} 133. Rf6
{[%clk 0:00:04.6]} 133... Rd5 {[%clk 0:00:07.2]} 134. Rf7 {[%clk 0:00:04.8]}
134... Ke2 {[%clk 0:00:07.3]} 135. Re7+ {[%clk 0:00:04.9]} 135... Kf3 {[%clk
0:00:07.7]} 136. Rf7+ {[%clk 0:00:05.5]} 136... Ke3 {[%clk 0:00:08.2]} 137. Rf8
{[%clk 0:00:02.4]} 137... Rd4 {[%clk 0:00:02.9]} 138. Re8+ {[%clk 0:00:02]}
138... Re4 {[%clk 0:00:03.2]} 139. Rf8 {[%clk 0:00:02.9]} 139... Ke2 {[%clk
0:00:03.2]} 140. Re8 {[%clk 0:00:03.8]} 140... Rxe8 {[%clk 0:00:02.7]} 0-1

[Event "Late-Titled-Tuesday-Blitz-June-25-2024"]
[Site "Chess.com"]
[Date "2024.06.25"]
[Round "9"]
[White "Bryanl106"]
[Black "WindWhistler11"]
[Result "1-0"]
[WhiteElo "2716"]
[BlackElo "2454"]
[TimeControl "180+1"]
[EndTime "15:38:45 PDT"]
[Termination "Bryanl106 won by resignation"]

1. e4 {[%clk 0:03:00.9]} 1... e6 {[%clk 0:02:55.9]} 2. d4 {[%clk 0:03:00.6]}
2... d5 {[%clk 0:02:56.2]} 3. Nd2 {[%clk 0:03:01.3]} 3... Nf6 {[%clk 0:02:56]}
4. e5 {[%clk 0:03:01.9]} 4... Nfd7 {[%clk 0:02:56.7]} 5. f4 {[%clk 0:03:02.4]}
5... c5 {[%clk 0:02:57.4]} 6. c3 {[%clk 0:03:03.2]} 6... Nc6 {[%clk 0:02:57.6]}
7. Ndf3 {[%clk 0:03:03.9]} 7... a5 {[%clk 0:02:57.7]} 8. Bd3 {[%clk 0:02:57.6]}
8... g6 {[%clk 0:02:57.4]} 9. Ne2 {[%clk 0:02:57.4]} 9... b6 {[%clk 0:02:57.9]}
10. O-O {[%clk 0:02:54]} 10... Ba6 {[%clk 0:02:58.4]} 11. g4 {[%clk 0:02:54.2]}
11... Bxd3 {[%clk 0:02:56.7]} 12. Qxd3 {[%clk 0:02:55.1]} 12... h5 {[%clk
0:02:56.9]} 13. f5 {[%clk 0:02:54.8]} 13... hxg4 {[%clk 0:02:56.2]} 14. fxe6
{[%clk 0:02:52.7]} 14... gxf3 {[%clk 0:02:42.4]} 15. exf7+ {[%clk 0:02:49.1]}
15... Kxf7 {[%clk 0:02:43]} 16. Qxf3+ {[%clk 0:02:47.3]} 16... Nf6 {[%clk
0:02:40.4]} 17. Qxf6+ {[%clk 0:02:47.3]} 17... Qxf6 {[%clk 0:02:37.3]} 18. Rxf6+
{[%clk 0:02:48.2]} 18... Kg7 {[%clk 0:02:34.4]} 19. Rxc6 {[%clk 0:02:49.1]} 1-0

[Event "Late-Titled-Tuesday-Blitz-June-25-2024"]
[Site "Chess.com"]
[Date "2024.06.25"]
[Round "9"]
[White "IndianSchoolOfSuffering"]
[Black "rockstar0902"]
[Result "1-0"]
[WhiteElo "2529"]
[BlackElo "2617"]
[TimeControl "180+1"]
[EndTime "15:39:26 PDT"]
[Termination "IndianSchoolOfSuffering won by resignation"]

1. e4 {[%clk 0:03:00.9]} 1... e5 {[%clk 0:02:59.2]} 2. Nf3 {[%clk 0:03:00.1]}
2... Nc6 {[%clk 0:02:59.7]} 3. d4 {[%clk 0:03:00.2]} 3... exd4 {[%clk
0:02:59.4]} 4. Nxd4 {[%clk 0:03:01.1]} 4... Nf6 {[%clk 0:02:58.6]} 5. Nxc6
{[%clk 0:02:59.9]} 5... bxc6 {[%clk 0:02:59.5]} 6. e5 {[%clk 0:03:00.2]} 6...
Qe7 {[%clk 0:03:00.2]} 7. Qe2 {[%clk 0:03:00.2]} 7... Nd5 {[%clk 0:03:00.9]} 8.
h4 {[%clk 0:02:58.4]} 8... Qe6 {[%clk 0:03:00.2]} 9. c4 {[%clk 0:02:52.7]} 9...
Nb6 {[%clk 0:02:55]} 10. b3 {[%clk 0:02:50.7]} 10... a5 {[%clk 0:02:54.2]} 11.
g3 {[%clk 0:02:44.2]} 11... Bb4+ {[%clk 0:02:50.6]} 12. Bd2 {[%clk 0:02:43.7]}
12... Bxd2+ {[%clk 0:02:49.1]} 13. Nxd2 {[%clk 0:02:43.7]} 13... a4 {[%clk
0:02:49.7]} 14. Bh3 {[%clk 0:02:42.5]} 14... Qe7 {[%clk 0:02:49.2]} 15. O-O
{[%clk 0:02:40.5]} 15... O-O {[%clk 0:02:48.6]} 16. Nf3 {[%clk 0:02:35.6]} 16...
f6 {[%clk 0:02:37.8]} 17. Rae1 {[%clk 0:02:21.4]} 17... axb3 {[%clk 0:02:36.8]}
18. axb3 {[%clk 0:02:20.8]} 18... fxe5 {[%clk 0:02:36.6]} 19. Nxe5 {[%clk
0:02:15.7]} 19... Qxe5 {[%clk 0:02:36.4]} 20. Qxe5 {[%clk 0:02:13.2]} 1-0

[Event "Late-Titled-Tuesday-Blitz-June-25-2024"]
[Site "Chess.com"]
[Date "2024.06.25"]
[Round "9"]
[White "toninhojit"]
[Black "MoldyTofu"]
[Result "1-0"]
[WhiteElo "2507"]
[BlackElo "2051"]
[TimeControl "180+1"]
[EndTime "15:41:37 PDT"]
[Termination "toninhojit won by resignation"]

1. e4 {[%clk 0:03:00.9]} 1... e6 {[%clk 0:02:57.4]} 2. d4 {[%clk 0:02:59]} 2...
d5 {[%clk 0:02:58.3]} 3. Nc3 {[%clk 0:02:59.2]} 3... dxe4 {[%clk 0:02:58.4]} 4.
Nxe4 {[%clk 0:02:58.9]} 4... Nf6 {[%clk 0:02:59.1]} 5. Nxf6+ {[%clk 0:02:58.2]}
5... Qxf6 {[%clk 0:03:00]} 6. Nf3 {[%clk 0:02:58.5]} 6... h6 {[%clk 0:02:59.5]}
7. Be3 {[%clk 0:02:56.3]} 7... Bd6 {[%clk 0:02:57.8]} 8. Bc4 {[%clk 0:02:55.8]}
8... O-O {[%clk 0:02:58.1]} 9. Qd2 {[%clk 0:02:56]} 9... b6 {[%clk 0:02:58]} 10.
O-O-O {[%clk 0:02:54.7]} 10... Bb7 {[%clk 0:02:58.4]} 11. Kb1 {[%clk 0:02:52.1]}
11... Nd7 {[%clk 0:02:57.3]} 12. Rhg1 {[%clk 0:02:42.6]} 12... a6 {[%clk
0:02:56.1]} 13. Bb3 {[%clk 0:02:36.3]} 13... b5 {[%clk 0:02:55.6]} 14. c3 {[%clk
0:02:35.8]} 14... a5 {[%clk 0:02:55.4]} 15. Bc2 {[%clk 0:02:36]} 15... b4 {[%clk
0:02:54.8]} 16. Qd3 {[%clk 0:02:36.5]} 16... g6 {[%clk 0:02:52.5]} 17. Bxh6
{[%clk 0:02:35.7]} 17... Rfb8 {[%clk 0:02:52.2]} 18. Bg5 {[%clk 0:02:35.5]}
18... Qg7 {[%clk 0:02:50]} 19. c4 {[%clk 0:02:32.7]} 19... a4 {[%clk 0:02:49.4]}
20. b3 {[%clk 0:02:25.9]} 20... axb3 {[%clk 0:02:49.3]} 21. Bxb3 {[%clk
0:02:26.3]} 21... Bc6 {[%clk 0:02:46.3]} 22. Bc1 {[%clk 0:02:08.1]} 22... Be7
{[%clk 0:02:37.7]} 23. Bb2 {[%clk 0:02:06.4]} 23... Bf6 {[%clk 0:02:38.2]} 24.
Rd2 {[%clk 0:02:02]} 24... Ba4 {[%clk 0:02:37.5]} 25. d5 {[%clk 0:01:56.6]}
25... Bxb3 {[%clk 0:02:32.4]} 26. axb3 {[%clk 0:01:55.8]} 26... Bxb2 {[%clk
0:02:32.4]} 27. Rxb2 {[%clk 0:01:56.7]} 27... exd5 {[%clk 0:02:31.5]} 28. Qxd5
{[%clk 0:01:55.4]} 28... Nf6 {[%clk 0:02:29.9]} 29. Qe5 {[%clk 0:01:34.2]} 29...
Re8 {[%clk 0:02:23.7]} 30. Qc5 {[%clk 0:01:17.4]} 30... Rab8 {[%clk 0:02:17.9]}
31. Nd2 {[%clk 0:00:58.6]} 31... Re7 {[%clk 0:02:05.5]} 32. Qxe7 {[%clk
0:00:57.3]} 1-0

[Event "Late-Titled-Tuesday-Blitz-June-25-2024"]
[Site "Chess.com"]
[Date "2024.06.25"]
[Round "9"]
[White "Boudicca64"]
[Black "Sasha_Solovev_777"]
[Result "0-1"]
[WhiteElo "1951"]
[BlackElo "2260"]
[TimeControl "180+1"]
[EndTime "15:42:27 PDT"]
[Termination "Sasha_Solovev_777 won by checkmate"]

1. e4 {[%clk 0:02:57.6]} 1... c5 {[%clk 0:02:59.5]} 2. g3 {[%clk 0:02:56.4]}
2... d5 {[%clk 0:02:57.9]} 3. exd5 {[%clk 0:02:54.7]} 3... Qxd5 {[%clk
0:02:58.8]} 4. Nf3 {[%clk 0:02:54]} 4... Nc6 {[%clk 0:02:57.7]} 5. Bg2 {[%clk
0:02:53.9]} 5... Bg4 {[%clk 0:02:57.7]} 6. O-O {[%clk 0:02:51.1]} 6... Nf6
{[%clk 0:02:56.6]} 7. h3 {[%clk 0:02:50]} 7... Bh5 {[%clk 0:02:52.1]} 8. g4
{[%clk 0:02:49.5]} 8... Bg6 {[%clk 0:02:52.3]} 9. Re1 {[%clk 0:02:48.2]} 9... e6
{[%clk 0:02:51.5]} 10. Ne5 {[%clk 0:02:44]} 10... Be4 {[%clk 0:02:32.3]} 11.
Bxe4 {[%clk 0:02:27.3]} 11... Nxe4 {[%clk 0:02:32]} 12. Nxc6 {[%clk 0:02:07.1]}
12... Qxc6 {[%clk 0:02:31.6]} 13. Qf3 {[%clk 0:02:00.9]} 13... Nf6 {[%clk
0:02:31.2]} 14. Qxc6+ {[%clk 0:01:59.2]} 14... bxc6 {[%clk 0:02:32.1]} 15. Nc3
{[%clk 0:01:57.3]} 15... Be7 {[%clk 0:02:25.3]} 16. d3 {[%clk 0:01:56.1]} 16...
Nd5 {[%clk 0:02:24.2]} 17. Ne4 {[%clk 0:01:53.7]} 17... O-O {[%clk 0:02:19.7]}
18. b3 {[%clk 0:01:12.8]} 18... h6 {[%clk 0:02:11.3]} 19. Ba3 {[%clk 0:01:07]}
19... Nb4 {[%clk 0:02:11.1]} 20. Re2 {[%clk 0:00:58.5]} 20... Rfd8 {[%clk
0:02:09.1]} 21. Kf1 {[%clk 0:00:48.8]} 21... a5 {[%clk 0:02:08.7]} 22. Ke1
{[%clk 0:00:46.1]} 22... a4 {[%clk 0:02:08.8]} 23. Bxb4 {[%clk 0:00:45.4]} 23...
cxb4 {[%clk 0:02:08.3]} 24. Kd2 {[%clk 0:00:44.7]} 24... axb3 {[%clk 0:02:02.4]}
25. cxb3 {[%clk 0:00:42.3]} 25... Rd5 {[%clk 0:01:56.1]} 26. Ke3 {[%clk
0:00:36.5]} 26... Rad8 {[%clk 0:01:53.6]} 27. Rc1 {[%clk 0:00:33.4]} 27... Rxd3+
{[%clk 0:01:49.9]} 28. Kf4 {[%clk 0:00:31.4]} 28... g5+ {[%clk 0:01:43.1]} 29.
Ke5 {[%clk 0:00:28.7]} 29... R8d5# {[%clk 0:01:42.5]} 0-1

[Event "Late-Titled-Tuesday-Blitz-June-25-2024"]
[Site "Chess.com"]
[Date "2024.06.25"]
[Round "9"]
[White "Grischuk"]
[Black "Zurability"]
[Result "1-0"]
[WhiteElo "3106"]
[BlackElo "2770"]
[TimeControl "180+1"]
[EndTime "15:42:40 PDT"]
[Termination "Grischuk won by resignation"]

1. d4 {[%clk 0:03:00.9]} 1... Nf6 {[%clk 0:02:19.7]} 2. c4 {[%clk 0:02:59.1]}
2... e6 {[%clk 0:02:20.1]} 3. Bg5 {[%clk 0:02:58.7]} 3... d5 {[%clk 0:02:18.7]}
4. e3 {[%clk 0:02:58.6]} 4... Nbd7 {[%clk 0:02:19.1]} 5. Nc3 {[%clk 0:02:58.4]}
5... c6 {[%clk 0:02:12.7]} 6. Qc2 {[%clk 0:02:52.6]} 6... Qa5 {[%clk 0:02:10.2]}
7. Bh4 {[%clk 0:02:14.6]} 7... Bb4 {[%clk 0:01:40.9]} 8. Bd3 {[%clk 0:02:10]}
8... dxc4 {[%clk 0:01:39.1]} 9. Bxc4 {[%clk 0:02:10.9]} 9... e5 {[%clk
0:01:39.6]} 10. Nf3 {[%clk 0:02:05.9]} 10... exd4 {[%clk 0:01:35.1]} 11. exd4
{[%clk 0:02:06.8]} 11... O-O {[%clk 0:01:27.5]} 12. O-O {[%clk 0:02:06.8]} 12...
h6 {[%clk 0:01:21.3]} 13. a3 {[%clk 0:02:04.8]} 13... Bd6 {[%clk 0:01:12.4]} 14.
Ba2 {[%clk 0:02:01]} 14... Qh5 {[%clk 0:01:08.7]} 15. Rfe1 {[%clk 0:01:50.4]}
15... b6 {[%clk 0:00:24.5]} 16. Ne4 {[%clk 0:01:31.7]} 16... Nxe4 {[%clk
0:00:24.6]} 17. Rxe4 {[%clk 0:01:32.6]} 17... Bb7 {[%clk 0:00:22.4]} 18. Be7
{[%clk 0:01:30.6]} 18... Bxe7 {[%clk 0:00:14.4]} 19. Rxe7 {[%clk 0:01:31.5]}
19... Bc8 {[%clk 0:00:10.4]} 20. Qxc6 {[%clk 0:01:25.7]} 20... Rb8 {[%clk
0:00:07.9]} 21. Rxd7 {[%clk 0:01:24.6]} 1-0

[Event "Late-Titled-Tuesday-Blitz-June-25-2024"]
[Site "Chess.com"]
[Date "2024.06.25"]
[Round "9"]
[White "mouseslips_are_the_best"]
[Black "Slovak_fighter2000"]
[Result "0-1"]
[WhiteElo "2365"]
[BlackElo "2511"]
[TimeControl "180+1"]
[EndTime "15:42:46 PDT"]
[Termination "Slovak_fighter2000 won by resignation"]

1. e4 {[%clk 0:03:00.9]} 1... c5 {[%clk 0:02:59.4]} 2. Nf3 {[%clk 0:03:01.4]}
2... Nc6 {[%clk 0:02:58.9]} 3. d4 {[%clk 0:03:01.4]} 3... cxd4 {[%clk
0:02:59.3]} 4. Nxd4 {[%clk 0:03:02.3]} 4... g6 {[%clk 0:02:59.4]} 5. c4 {[%clk
0:03:02.1]} 5... Bg7 {[%clk 0:02:59.9]} 6. Be3 {[%clk 0:03:02.5]} 6... Nf6
{[%clk 0:03:00]} 7. Nc3 {[%clk 0:03:02.2]} 7... O-O {[%clk 0:02:58.7]} 8. Be2
{[%clk 0:03:02.4]} 8... d6 {[%clk 0:02:58.8]} 9. O-O {[%clk 0:03:02.9]} 9...
Nxd4 {[%clk 0:02:58.4]} 10. Bxd4 {[%clk 0:03:01.9]} 10... Bd7 {[%clk 0:02:58.9]}
11. Qc2 {[%clk 0:02:57]} 11... Bc6 {[%clk 0:02:55.9]} 12. Rad1 {[%clk
0:02:57.5]} 12... Qc7 {[%clk 0:02:31.5]} 13. b3 {[%clk 0:02:48.2]} 13... a6
{[%clk 0:02:25.5]} 14. Nd5 {[%clk 0:02:45.9]} 14... Bxd5 {[%clk 0:02:19.4]} 15.
exd5 {[%clk 0:02:46.2]} 15... b5 {[%clk 0:02:14.9]} 16. Rfe1 {[%clk 0:02:44]}
16... bxc4 {[%clk 0:02:14]} 17. bxc4 {[%clk 0:02:40.3]} 17... Nd7 {[%clk
0:02:07.5]} 18. Bxg7 {[%clk 0:02:39.4]} 18... Kxg7 {[%clk 0:02:07.4]} 19. Bg4
{[%clk 0:02:36.1]} 19... Nc5 {[%clk 0:02:05.9]} 20. h4 {[%clk 0:02:30.5]} 20...
Rab8 {[%clk 0:01:58.3]} 21. h5 {[%clk 0:02:29.9]} 21... Rb7 {[%clk 0:01:51.8]}
22. Qc3+ {[%clk 0:02:27.7]} 22... f6 {[%clk 0:01:44.1]} 23. Re2 {[%clk
0:02:21.5]} 23... Na4 {[%clk 0:01:35.1]} 24. Qd4 {[%clk 0:02:20.3]} 24... Qc5
{[%clk 0:01:32.5]} 25. Qf4 {[%clk 0:02:08.7]} 25... Nc3 {[%clk 0:01:29.3]} 26.
h6+ {[%clk 0:01:57.7]} 26... Kh8 {[%clk 0:01:26.5]} 27. Rde1 {[%clk 0:01:53.3]}
27... Nxe2+ {[%clk 0:01:25.9]} 28. Rxe2 {[%clk 0:01:54.2]} 28... Rc7 {[%clk
0:01:20]} 29. Re4 {[%clk 0:01:46.8]} 29... Qb4 {[%clk 0:00:52.1]} 30. Qe3 {[%clk
0:01:41.2]} 30... Qb7 {[%clk 0:00:42.1]} 31. Be2 {[%clk 0:01:33.5]} 31... Qa7
{[%clk 0:00:38.6]} 32. Qc3 {[%clk 0:01:30.3]} 32... Qb6 {[%clk 0:00:33]} 33. g4
{[%clk 0:01:26.9]} 33... Qb1+ {[%clk 0:00:32]} 0-1

[Event "Late-Titled-Tuesday-Blitz-June-25-2024"]
[Site "Chess.com"]
[Date "2024.06.25"]
[Round "9"]
[White "vanyakuba"]
[Black "JuliaEfremova"]
[Result "0-1"]
[WhiteElo "2426"]
[BlackElo "2323"]
[TimeControl "180+1"]
[EndTime "15:42:47 PDT"]
[Termination "JuliaEfremova won by resignation"]

1. e4 {[%clk 0:03:00.9]} 1... d5 {[%clk 0:02:55.7]} 2. exd5 {[%clk 0:03:00.7]}
2... Nf6 {[%clk 0:02:54.5]} 3. c4 {[%clk 0:03:00.2]} 3... Bg4 {[%clk 0:02:49.5]}
4. Qb3 {[%clk 0:02:54.7]} 4... e6 {[%clk 0:02:39.6]} 5. h3 {[%clk 0:02:48.3]}
5... Bf5 {[%clk 0:02:34.8]} 6. Nf3 {[%clk 0:02:18.7]} 6... exd5 {[%clk
0:02:22.9]} 7. d4 {[%clk 0:02:18.7]} 7... Be7 {[%clk 0:02:15.9]} 8. Qxb7 {[%clk
0:02:12.7]} 8... Nbd7 {[%clk 0:02:15.1]} 9. cxd5 {[%clk 0:02:13]} 9... Rb8
{[%clk 0:02:08.5]} 10. Qxa7 {[%clk 0:02:12.9]} 10... Nxd5 {[%clk 0:02:04.1]} 11.
Nc3 {[%clk 0:02:12.3]} 11... Nb4 {[%clk 0:02:01.8]} 12. Kd1 {[%clk 0:01:12.9]}
12... O-O {[%clk 0:01:42.9]} 13. Bc4 {[%clk 0:01:04]} 13... c5 {[%clk
0:01:35.3]} 14. Bb3 {[%clk 0:00:58.8]} 14... cxd4 {[%clk 0:00:55.7]} 15. Na4
{[%clk 0:00:58.8]} 15... Nf6 {[%clk 0:00:47.3]} 16. Bf4 {[%clk 0:00:57.1]} 16...
Ra8 {[%clk 0:00:41.6]} 17. Qb7 {[%clk 0:00:57.1]} 17... Be4 {[%clk 0:00:38.2]}
18. Re1 {[%clk 0:00:50.3]} 18... Bxb7 {[%clk 0:00:36.7]} 0-1